fUST/lending_fUST_20251110
["ID","MTS","AMOUNT","RATE_DAILY","PERIOD"]
[393541348,1762784490476,500.0,0.00037131,60]
[393541349,1762784490513,501.60899115,0.00037131,60]
[393541350,1762784490701,500.0,0.00037131,60]
[393541351,1762784492545,500.0,0.00037131,60]
[393541352,1762784492780,500.0,0.00037131,60]
[393541353,1762784493010,500.0,0.00037131,60]
[393541354,1762784493251,500.0,0.00037131,60]
[393541355,1762784493501,500.0,0.00037131,60]
[393541356,1762784493779,171.85,0.00037131,60]
[393541357,1762784495423,500.0,0.00037131,60]
[393541358,1762784495457,500.0,0.00037131,60]
[393541359,1762784495657,500.0,0.00037131,60]
[393541360,1762784495708,500.0,0.00037131,60]
[393541361,1762784495895,500.0,0.00037131,60]
[393541362,1762784495948,500.0,0.00037131,60]
[393541363,1762784496144,619.71,0.00037131,60]
[393541364,1762784496186,500.0,0.00037131,60]
[393541365,1762784496463,500.0,0.00037131,60]
[393541366,1762784496713,500.0,0.00037131,60]
[393541367,1762784497030,500.0,0.00037131,60]
[393541368,1762784497205,464.89,0.00037131,60]
[393541369,1762784497558,500.0,0.00037131,60]
[393541370,1762784497797,500.0,0.00037131,60]
[393541371,1762784498029,500.0,0.00037131,60]
[393541372,1762784498311,597.24,0.00037131,60]
[393541373,1762784500352,500.0,0.00037131,60]
[393541374,1762784500587,500.0,0.00037131,60]
[393541375,1762784500818,500.0,0.00037131,60]
[393541376,1762784501240,500.0,0.00037131,60]
[393541377,1762784501485,500.0,0.00037131,60]
[393541378,1762784501718,500.0,0.00037131,60]
[393541379,1762784501945,500.0,0.00037131,60]
[393541380,1762784502194,500.0,0.00037131,60]
[393541381,1762784502427,500.0,0.00037131,60]
[393541382,1762784502698,500.0,0.00037131,60]
[393541383,1762784502957,500.0,0.00037131,60]
[393541384,1762784503087,500.0,0.00037131,60]
[393541385,1762784503192,500.0,0.00037131,60]
[393541386,1762784503224,500.0,0.00037131,60]
[393541387,1762784503434,500.0,0.00037131,60]
[393541388,1762784503469,500.0,0.00037131,60]
[393541389,1762784503751,500.0,0.00037131,60]
[393541390,1762784504007,500.0,0.00037131,60]
[393541391,1762784504251,526.6,0.00037131,60]
[393541392,1762784506747,348.84055433,0.00037131,60]
[393541393,1762784507662,500.0,0.00037131,60]
[393541394,1762784507891,500.0,0.00037131,60]
[393541395,1762784508132,500.0,0.00037131,60]
[393541396,1762784508373,410.87,0.00037131,60]
[393541397,1762784509065,500.0,0.00037131,60]
[393541398,1762784509298,500.0,0.00037131,60]
[393541399,1762784509616,500.0,0.00037131,60]
[393541400,1762784509851,588.0,0.00037131,60]
[393541401,1762784510278,500.0,0.00037131,60]
[393541402,1762784510531,500.0,0.00037131,60]
[393541403,1762784510756,500.0,0.00037131,60]
[393541404,1762784511015,500.0,0.00037131,60]
[393541406,1762784511244,500.0,0.00037131,60]
[393541408,1762784511506,500.0,0.00037131,60]
[393541410,1762784511786,500.0,0.00037131,60]
[393541411,1762784512288,500.0,0.00037131,60]
[393541412,1762784512370,500.0,0.00037131,60]
[393541413,1762784512620,500.0,0.00037131,60]
[393541414,1762784512786,500.0,0.00037131,60]
[393541415,1762784512955,500.0,0.00037131,60]
[393541416,1762784513020,500.84280609,0.00037131,60]
[393541417,1762784513201,500.0,0.00037131,60]
[393541418,1762784513447,500.0,0.00037131,60]
[393541419,1762784513703,500.0,0.00037131,60]
[393541420,1762784513944,500.0,0.00037131,60]
[393541421,1762784514061,500.0,0.00037131,60]
[393541422,1762784514191,500.0,0.00037131,60]
[393541423,1762784514289,500.0,0.00037131,60]
[393541424,1762784514434,500.0,0.00037131,120]
[393541425,1762784514518,500.0,0.00037131,60]
[393541426,1762784514665,500.0,0.00037131,120]
[393541427,1762784514903,500.0,0.00037131,120]
[393541428,1762784515136,500.0,0.00037131,120]
[393541429,1762784515463,389.42,0.00037131,120]
[393541430,1762784516171,500.0,0.00037131,60]
[393541431,1762784516406,500.0,0.00037131,60]
[393541432,1762784516647,500.0,0.00037131,60]
[393541433,1762784516897,600.00168328,0.00037131,60]
[393541437,1762784517375,319.52,0.00037131,60]
[393541438,1762784519197,500.0,0.00037131,60]
[393541439,1762784519442,500.0,0.00037131,60]
[393541440,1762784519692,500.0,0.00037131,60]
[393541441,1762784519946,500.0,0.00037131,60]
[393541442,1762784520217,500.0,0.00037131,60]
[393541443,1762784520483,500.0,0.00037131,60]
[393541444,1762784520718,500.0,0.00037131,60]
[393541445,1762784520953,368.76,0.00037131,60]
[393541447,1762784526110,500.0,0.00037131,60]
[393541448,1762784526410,500.0,0.00037131,60]
[393541449,1762784526456,500.0,0.00037131,60]
[393541450,1762784526652,500.0,0.00037131,60]
[393541451,1762784526702,500.0,0.00037131,60]
[393541452,1762784526901,500.0,0.00037131,60]
[393541453,1762784526978,511.31227365,0.00037131,60]
[393541454,1762784527151,500.0,0.00037131,60]
[393541455,1762784527452,500.0,0.00037131,60]
[393541456,1762784528006,500.0,0.00037131,60]
[393541457,1762784528263,500.0,0.00037131,60]
[393541458,1762784528299,559.6,0.00037131,60]
[393541459,1762784528338,639.18828473,0.00037131,60]
[393541460,1762784528521,500.0,0.00037131,60]
[393541461,1762784528749,500.0,0.00037131,60]
[393541462,1762784528786,500.0,0.00037131,60]
[393541463,1762784528985,500.0,0.00037131,60]
[393541464,1762784529022,500.0,0.00037131,60]
[393541465,1762784529252,500.0,0.00037131,60]
[393541466,1762784529336,500.0,0.00037131,60]
[393541467,1762784529491,500.0,0.00037131,60]
[393541468,1762784529727,500.0,0.00037131,60]
[393541469,1762784530019,500.0,0.00037131,60]
[393541470,1762784530261,500.0,0.00037131,60]
[393541471,1762784530500,500.0,0.00037131,60]
[393541472,1762784530737,500.0,0.00037131,60]
[393541473,1762784530786,500.0,0.00037131,60]
[393541474,1762784530971,500.0,0.00037131,60]
[393541475,1762784531038,500.0,0.00037131,60]
[393541476,1762784531206,500.0,0.00037131,60]
[393541477,1762784531286,500.0,0.00037131,60]
[393541478,1762784531447,500.0,0.00037131,60]
[393541479,1762784531537,192.62900928,0.00037131,60]
[393541480,1762784531677,500.0,0.00037131,60]
[393541481,1762784531921,500.0,0.00037131,120]
[393541482,1762784532191,500.0,0.00037131,120]
[393541483,1762784532456,500.0,0.00037131,120]
[393541484,1762784532693,500.0,0.00037131,120]
[393541485,1762784532940,500.0,0.00037131,120]
[393541486,1762784533176,571.68,0.00037131,120]
[393541487,1762784534801,500.0,0.00037131,60]
[393541488,1762784535050,500.0,0.00037131,60]
[393541489,1762784535295,500.0,0.00037131,60]
[393541490,1762784535331,500.0,0.00037131,60]
[393541491,1762784535540,500.0,0.00037131,60]
[393541492,1762784535576,500.0,0.00037131,60]
[393541493,1762784535778,233.12,0.00037131,60]
[393541494,1762784535812,500.0,0.00037131,60]
[393541495,1762784536041,500.0,0.00037131,60]
[393541496,1762784536525,500.0,0.00037131,60]
[393541497,1762784536777,500.0,0.00037131,60]
[393541498,1762784537020,500.0,0.00037131,60]
[393541499,1762784537257,500.0,0.00037131,60]
[393541500,1762784537527,500.0,0.00037131,60]
[393541501,1762784537743,500.0,0.00037131,60]
[393541502,1762784538019,500.0,0.00037131,60]
[393541503,1762784538257,500.0,0.00037131,60]
[393541504,1762784538516,500.0,0.00037131,60]
[393541505,1762784538755,500.0,0.00037131,60]
[393541506,1762784539017,497.08,0.00037131,60]
[393541507,1762784539259,500.0,0.00037131,60]
[393541508,1762784539500,500.0,0.00037131,60]
[393541509,1762784539741,500.0,0.00037131,60]
[393541510,1762784539834,500.0,0.00037131,60]
[393541511,1762784539984,500.0,0.00037131,60]
[393541512,1762784540076,500.0,0.00037131,60]
[393541513,1762784540211,500.0,0.00037131,60]
[393541514,1762784540264,500.0,0.00037131,60]
[393541515,1762784540335,500.0,0.00037131,60]
[393541516,1762784540478,635.12,0.00037131,60]
[393541517,1762784540515,441.96,0.00037131,60]
[393541518,1762784540604,500.0,0.00037131,60]
[393541519,1762784540864,500.0,0.00037131,60]
[393541520,1762784541098,500.0,0.00037131,60]
[393541521,1762784541349,500.0,0.00037131,60]
[393541522,1762784541609,500.0,0.00037131,60]
[393541523,1762784541836,500.0,0.00037131,60]
[393541524,1762784542075,352.62,0.00037131,60]
[393541525,1762784543827,1118.63,0.00037131,30]
[393541526,1762784543919,500.0,0.00037131,60]
[393541527,1762784544098,1118.63,0.00037131,30]
[393541528,1762784544162,500.0,0.00037131,60]
[393541529,1762784544339,1118.63,0.00037131,30]
[393541530,1762784544396,500.0,0.00037131,60]
[393541531,1762784544586,1118.63,0.00037131,30]
[393541532,1762784544634,500.0,0.00037131,60]
[393541533,1762784544833,1118.63,0.00037131,30]
[393541534,1762784544872,500.0,0.00037131,60]
[393541535,1762784545072,1118.63,0.00037131,30]
[393541536,1762784545115,500.0,0.00037131,60]
[393541537,1762784545309,1118.63,0.00037131,30]
[393541538,1762784545361,500.0,0.00037131,60]
[393541539,1762784545623,500.0,0.00037131,60]
[393541540,1762784545817,500.0,0.00037131,60]
[393541541,1762784545898,500.0,0.00037131,60]
[393541542,1762784546051,500.0,0.00037131,60]
[393541543,1762784546140,500.0,0.00037131,60]
[393541544,1762784546299,500.0,0.00037131,60]
[393541545,1762784546334,1118.63,0.00037131,30]
[393541546,1762784546403,500.0,0.00037131,60]
[393541547,1762784546545,500.0,0.00037131,60]
[393541548,1762784546596,1118.63,0.00037131,30]
[393541549,1762784546647,500.0,0.00037131,60]
[393541550,1762784546799,500.0,0.00037131,60]
[393541551,1762784546849,1118.63,0.00037131,30]
[393541552,1762784546884,500.0,0.00037131,60]
[393541553,1762784547039,500.0,0.00037131,60]
[393541554,1762784547134,1118.63,0.00037131,30]
[393541555,1762784547170,500.0,0.00037131,60]
[393541556,1762784547422,500.0,0.00037131,60]
[393541557,1762784547463,1118.63,0.00037131,30]
[393541558,1762784547498,500.0,0.00037131,60]
[393541559,1762784547606,500.0,0.00037131,60]
[393541560,1762784547640,500.0,0.00037131,60]
[393541561,1762784547675,1118.63,0.00037131,30]
[393541562,1762784547709,150.11,0.00037131,120]
[393541563,1762784547747,500.0,0.00037131,60]
[393541564,1762784547825,500.0,0.00037131,60]
[393541565,1762784547876,1118.63,0.00037131,30]
[393541566,1762784547996,500.0,0.00037131,60]
[393541567,1762784548131,1118.63,0.00037131,30]
[393541568,1762784548236,649.32,0.00037131,60]
[393541569,1762784548408,1118.63,0.00037131,30]
[393541570,1762784548566,500.0,0.00037131,20]
[393541571,1762784548648,1118.63,0.00037131,30]
[393541572,1762784548822,500.0,0.00037131,20]
[393541573,1762784548890,1118.63,0.00037131,30]
[393541574,1762784549134,1118.63,0.00037131,30]
[393541575,1762784549389,1118.63,0.00037131,30]
[393541576,1762784549628,1118.63,0.00037131,30]
[393541577,1762784549904,1118.63,0.00037131,30]
[393541578,1762784550123,1118.63,0.00037131,30]
[393541579,1762784550360,1118.84107591,0.00037131,30]
[393541580,1762784550486,500.0,0.00037131,60]
[393541581,1762784550744,500.0,0.00037131,60]
[393541582,1762784550981,500.0,0.00037131,60]
[393541583,1762784551221,338.68,0.00037131,60]
[393541584,1762784552330,500.0,0.00037131,60]
[393541585,1762784552582,500.0,0.00037131,60]
[393541586,1762784553165,500.0,0.00037131,60]
[393541587,1762784553200,500.0,0.00037131,60]
[393541588,1762784553411,500.0,0.00037131,60]
[393541589,1762784553450,500.0,0.00037131,60]
[393541590,1762784553661,500.0,0.00037131,60]
[393541591,1762784553782,500.0,0.00037131,60]
[393541592,1762784554040,500.0,0.00037131,60]
[393541593,1762784554265,500.0,0.00037131,60]
[393541594,1762784554498,500.0,0.00037131,60]
[393541595,1762784554755,500.0,0.00037131,60]
[393541596,1762784554988,500.0,0.00037131,60]
[393541597,1762784555218,500.0,0.00037131,60]
[393541598,1762784555253,520.38459266,0.00037131,60]
[393541599,1762784555467,500.0,0.00037131,60]
[393541600,1762784555706,500.0,0.00037131,60]
[393541601,1762784555965,500.0,0.00037131,60]
[393541602,1762784556283,518.31503258,0.00037131,60]
[393541603,1762784557039,500.0,0.00037131,60]
[393541604,1762784557312,500.0,0.00037131,60]
[393541605,1762784557549,500.0,0.00037131,60]
[393541606,1762784557849,500.0,0.00037131,60]
[393541607,1762784558013,500.0,0.00037131,60]
[393541608,1762784558116,201.0,0.00037131,60]
[393541609,1762784558378,500.0,0.00037131,60]
[393541610,1762784558518,500.0,0.00037131,60]
[393541611,1762784558688,500.0,0.00037131,60]
[393541612,1762784558924,500.0,0.00037131,60]
[393541613,1762784558990,500.0,0.00037131,60]
[393541614,1762784559176,500.0,0.00037131,60]
[393541615,1762784559335,500.0,0.00037131,60]
[393541616,1762784559431,500.0,0.00037131,60]
[393541617,1762784559598,500.0,0.00037131,60]
[393541618,1762784559670,500.0,0.00037131,60]
[393541619,1762784559938,500.0,0.00037131,60]
[393541620,1762784560021,500.0,0.00037131,60]
[393541621,1762784560176,500.0,0.00037131,60]
[393541622,1762784560261,500.0,0.00037131,60]
[393541623,1762784560413,500.0,0.00037131,60]
[393541624,1762784560487,500.0,0.00037131,60]
[393541625,1762784560665,521.94166683,0.00037131,60]
[393541626,1762784562498,500.0,0.00037131,60]
[393541627,1762784562743,500.0,0.00037131,60]
[393541628,1762784562978,500.0,0.00037131,60]
[393541629,1762784566354,500.0,0.00037131,60]
[393541630,1762784566599,500.0,0.00037131,60]
[393541631,1762784566833,528.13334996,0.00037131,60]
[393541632,1762784570493,500.0,0.00037131,30]
[393541633,1762784570731,500.0,0.00037131,30]
[393541634,1762784571072,500.0,0.00037131,30]
[393541635,1762784571312,500.0,0.00037131,30]
[393541636,1762784571539,506.11977384,0.00037131,60]
[393541637,1762784571595,500.0,0.00037131,30]
[393541638,1762784571707,535.46672996,0.00037131,60]
[393541639,1762784571859,500.0,0.00037131,30]
[393541640,1762784572088,500.0,0.00037131,30]
[393541641,1762784572389,513.59355483,0.00037131,30]
[393541642,1762784574199,190.15,0.00037131,60]
[393541643,1762784577897,219.35457666,0.00037131,60]
[393541644,1762784578479,628.83668021,0.00037131,60]
[393541645,1762784579648,3889199.89396277,0.00037131,20]
[393541751,1762785040489,-201.83031491,0.00019076,2]
[393541752,1762785040500,-172.25957758,0.00019295,2]
[393541753,1762785040569,-33.25322505,0.00019295,2]
[393541754,1762785040582,-1980.2992011,0.00020826,2]
[393541755,1762785040592,-5530.0271113,0.00020987,2]
[393541756,1762785040602,-242.5051071,0.00021295,2]
[393541757,1762785040613,-300.0,0.00021499,2]
[393541758,1762785040623,-164.0312576,0.000215,2]
[393541759,1762785040633,-168.0,0.00021588,2]
[393541760,1762785040644,-373.0471877,0.000216,2]
[393541763,1762785040655,-164.0312576,0.000216,2]
[393541765,1762785040666,-164.0312576,0.000216,2]
[393541766,1762785040677,-164.0312576,0.000216,2]
[393541767,1762785040686,-592.8099389,0.000216,2]
[393541768,1762785040696,-164.0312576,0.000216,2]
[393541769,1762785040706,-371.6025355,0.000216,2]
[393541770,1762785040716,-600.0172836,0.000216,2]
[393541771,1762785040726,-2160.98936393,0.00021681,2]
[393542125,1762785046743,-300.0086418,0.000215,2]
[393542127,1762785046757,-6.93261347,0.00021681,2]
[393542130,1762785046769,-300.0086418,0.00021699,2]
[393542132,1762785046782,-300.0086418,0.00021699,2]
[393542134,1762785046795,-164.0312576,0.000217,2]
[393542135,1762785046807,-164.0312576,0.000217,2]
[393542137,1762785046819,-168.0,0.00021831,2]
[393542139,1762785046830,-168.0,0.00021862,2]
[393542141,1762785046844,-314.5411041,0.00021971,2]
[393542143,1762785046856,-359.39929078,0.00021972,2]
[393542145,1762785046867,-293.37785337,0.00021972,2]
[393542147,1762785046878,-500.0,0.00021973,2]
[393542149,1762785046891,-168.0,0.00021987,2]
[393542151,1762785046902,-168.6644131,0.00021987,2]
[393542153,1762785046914,-500.0,0.00021989,2]
[393542155,1762785046925,-207.15228037,0.00021989,2]
[393542156,1762785046935,-500.0,0.00021989,2]
[393542158,1762785046945,-500.0,0.00021989,2]
[393542160,1762785046957,-500.0,0.00021989,2]
[393542162,1762785046967,-500.0,0.00021989,2]
[393542164,1762785046979,-500.0,0.00021989,2]
[393542166,1762785046991,-5510.40094432,0.0002199,2]
[393542226,1762785243281,5000.0,0.0001962,3]
[393542227,1762785358793,3636.72810364,0.00018651,2]
[393542228,1762785367641,430.27189636,0.00018651,2]
[393542229,1762785496422,232.62781768,0.000328,120]
[393542230,1762785528443,161.0,0.000328,120]
[393542231,1762785529806,161.0,0.000328,120]
[393542232,1762785548468,180.0,0.000328,120]
[393542233,1762785550856,180.0,0.000328,120]
[393542234,1762785553169,180.0,0.000328,120]
[393542235,1762785555654,269.5970034,0.000328,120]
[393542237,1762785587438,176.14029671,0.0003287,120]
[393542238,1762785602366,377.327143,0.00013699,2]
[393542240,1762785614971,441.14337132,0.000328,120]
[393542241,1762785629187,200.79079,0.0003,120]
[393542242,1762785635050,200.0,0.0003,120]
[393542243,1762785635470,200.0,0.000317,120]
[393542248,1762785652720,956.90348196,0.000328,120]
[393542249,1762785670598,721.22297,0.00032876,120]
[393542250,1762785678866,184.02186877,0.000328,120]
[393542251,1762785679124,166.59780374,0.000328,120]
[393542252,1762785682898,170.43767339,0.000328,120]
[393542253,1762785703462,186.50777453,0.000328,120]
[393542254,1762785703620,195.22719064,0.000328,120]
[393542255,1762785713905,184.67994437,0.000328,120]
[393542256,1762785720080,197.61039512,0.000328,120]
[393542257,1762785722973,176.63571678,0.000328,120]
[393542258,1762785728972,194.63243766,0.000328,120]
[393542261,1762785813587,186.10225415,0.000328,120]
[393542264,1762785931398,352.91469706,0.000328,120]
[393542265,1762785969170,765.52278557,0.000328,120]
[393542266,1762786004145,-886.0,0.00018279,2]
[393542267,1762786004167,-199.55244443,0.00018284,2]
[393542268,1762786004189,-562.15911718,0.000183,2]
[393542269,1762786004211,-275.25904721,0.00019076,2]
[393542270,1762786004237,-151.7983564,0.0002,2]
[393542271,1762786004259,-377.327143,0.00020187,2]
[393542272,1762786004282,-235.47188443,0.00020284,2]
[393542273,1762786004308,-168.0,0.00020791,2]
[393542274,1762786004334,-168.0,0.00020903,2]
[393542275,1762786004358,-168.0,0.00020972,2]
[393542276,1762786004382,-168.0,0.00020995,2]
[393542277,1762786004403,-2851.91536259,0.00021045,2]
[393542278,1762786004426,-168.0,0.00021078,2]
[393542279,1762786004449,-168.0,0.00021118,2]
[393542280,1762786004472,-1200.0,0.00021243,2]
[393542281,1762786004500,-1541.0,0.00021244,2]
[393542282,1762786004524,-168.0,0.00021335,2]
[393542283,1762786004545,-300.0,0.00021446,2]
[393542284,1762786004566,-300.0,0.00021446,2]
[393542285,1762786004588,-300.0,0.00021446,2]
[393542286,1762786004611,-1541.0,0.00021447,2]
[393542287,1762786004632,-2851.91536259,0.00021454,2]
[393542288,1762786004652,-161.0,0.000215,2]
[393542289,1762786004672,-161.0,0.000215,2]
[393542290,1762786004693,-114.08739717,0.000215,3]
[393542291,1762786017967,186.50777452,0.000328,120]
[393542292,1762786019741,195.22719064,0.000328,120]
[393542293,1762786021969,875.13786861,0.00032,120]
[393542296,1762786029268,184.67994437,0.000328,120]
[393542302,1762786038143,197.61039512,0.000328,120]
[393542307,1762786040784,176.63571678,0.000328,120]
[393542313,1762786043733,194.63243766,0.000328,120]
[393542318,1762786130365,186.10225415,0.000328,120]
[393542319,1762786218740,223.80086556,0.00032876,120]
[393542457,1762786232748,-260.0,0.00019177,2]
[393542460,1762786232758,-157.0,0.00019177,2]
[393542463,1762786232767,-170.17907952,0.00019177,2]
[393542483,1762786232863,-309.82092048,0.00019177,2]
[393542485,1762786232874,-2176.25139088,0.00019178,2]
[393542728,1762786238487,-274.37451531,0.00019178,2]
[393542729,1762786238499,-2549.37409381,0.00019178,2]
[393542730,1762786238509,-5000.0,0.00019377,2]
[393542731,1762786238519,-47.41260283,0.000215,3]
[393542732,1762786238528,-4206.94394162,0.00021543,2]
[393542733,1762786238540,-793.05605838,0.00021543,2]
[393542734,1762786238551,-1541.0,0.00021585,2]
[393542735,1762786238561,-150.0,0.000216,2]
[393542736,1762786238572,-2271.03136316,0.00021872,2]
[393542737,1762786238582,-150.0,0.00021873,2]
[393542738,1762786238591,-500.0,0.00021873,2]
[393542739,1762786238601,-500.0,0.00021873,2]
[393542740,1762786238611,-500.0,0.00021873,2]
[393542741,1762786238621,-500.0,0.00021873,2]
[393542742,1762786238633,-500.0,0.00021873,2]
[393542743,1762786238643,-635.91,0.00021874,10]
[393542744,1762786238653,-500.0,0.00021883,2]
[393542745,1762786238663,-234.93371918,0.00021883,2]
[393542746,1762786238673,-500.0,0.00021883,2]
[393542747,1762786238683,-500.0,0.00021883,2]
[393542748,1762786238693,-500.0,0.00021883,2]
[393542749,1762786238703,-500.0,0.00021883,2]
[393542750,1762786238713,-500.0,0.00021883,2]
[393542751,1762786238724,-500.0,0.00021883,2]
[393542752,1762786238733,-500.0,0.00021883,2]
[393542753,1762786238743,-500.0,0.00021883,2]
[393542754,1762786238754,-500.0,0.00021883,2]
[393542755,1762786238763,-500.0,0.00021883,2]
[393542756,1762786238773,-500.0,0.00021883,2]
[393542757,1762786238783,-500.0,0.00021883,2]
[393542758,1762786238793,-500.0,0.00021883,2]
[393542759,1762786238803,-500.0,0.00021883,2]
[393542760,1762786238813,-500.0,0.00021883,2]
[393542761,1762786238823,-500.0,0.00021883,2]
[393542762,1762786238833,-500.0,0.00021883,2]
[393542763,1762786238842,-500.0,0.00021883,2]
[393542764,1762786238852,-500.0,0.00021883,2]
[393542765,1762786238862,-500.0,0.00021883,2]
[393542766,1762786238872,-500.0,0.00021883,2]
[393542767,1762786238883,-500.0,0.00021883,2]
[393542768,1762786238906,-500.0,0.00021883,2]
[393542769,1762786238916,-500.0,0.00021883,2]
[393542770,1762786238927,-500.0,0.00021883,2]
[393542771,1762786238938,-500.0,0.00021883,2]
[393542772,1762786238948,-286.33659804,0.00021883,2]
[393542773,1762786238959,-500.0,0.00021883,2]
[393542774,1762786238970,-500.0,0.00021883,2]
[393542775,1762786238980,-500.0,0.00021883,2]
[393542776,1762786238990,-500.0,0.00021883,2]
[393542777,1762786239000,-500.0,0.00021883,2]
[393542778,1762786239011,-500.0,0.00021883,2]
[393542779,1762786239021,-500.0,0.00021883,2]
[393542780,1762786239031,-500.0,0.00021883,2]
[393542781,1762786239041,-500.0,0.00021883,2]
[393542782,1762786239051,-500.0,0.00021883,2]
[393542783,1762786239061,-500.0,0.00021883,2]
[393542784,1762786239071,-500.0,0.00021883,2]
[393542785,1762786239081,-500.0,0.00021883,2]
[393542786,1762786239090,-500.0,0.00021883,2]
[393542787,1762786239100,-500.0,0.00021883,2]
[393542788,1762786239112,-500.0,0.00021883,2]
[393542789,1762786239126,-500.0,0.00021883,2]
[393542790,1762786239138,-500.0,0.00021883,2]
[393542791,1762786239149,-500.0,0.00021883,2]
[393542792,1762786239167,-500.0,0.00021883,2]
[393542793,1762786239182,-500.0,0.00021883,2]
[393542794,1762786239193,-500.0,0.00021883,2]
[393542795,1762786239203,-328.52041102,0.00021883,2]
[393542796,1762786239214,-175.86555451,0.00021883,2]
[393542797,1762786239225,-500.0,0.00021883,2]
[393542798,1762786239236,-500.0,0.00021883,2]
[393542799,1762786239246,-500.0,0.00021883,2]
[393542800,1762786239256,-500.0,0.00021883,2]
[393542801,1762786239267,-455.64629571,0.00021883,2]
[393542802,1762786239317,-44.35370429,0.00021883,2]
[393542803,1762786239327,-500.0,0.00021883,2]
[393542804,1762786239339,-500.0,0.00021883,2]
[393542805,1762786239349,-500.0,0.00021883,2]
[393542806,1762786239359,-500.0,0.00021883,2]
[393542807,1762786239370,-500.0,0.00021883,2]
[393542808,1762786239381,-500.0,0.00021883,2]
[393542809,1762786239391,-500.0,0.00021883,2]
[393542810,1762786239401,-500.0,0.00021883,2]
[393542811,1762786239411,-461.12122116,0.00021883,2]
[393542812,1762786239422,-500.0,0.00021883,2]
[393542813,1762786239432,-19575.12507454,0.00021884,2]
[393542814,1762786239444,-3006.72,0.00021884,2]
[393542815,1762786239456,-2739.5793,0.00021884,2]
[393542816,1762786239467,-203020.98000001,0.00021884,2]
[393542835,1762786240654,-171.07224,0.00021883,2]
[393542837,1762786240665,-7889.01200655,0.00021884,2]
[393542855,1762786240979,-6648.075,0.00021884,2]
[393542906,1762786243811,486.0,0.00024281,120]
[393542907,1762786243826,-694.0900242,0.00021884,2]
[393542908,1762786243993,-179889.78224098,0.00021884,2]
[393542935,1762786244236,-1687.276235,0.00021884,2]
[393542944,1762786245263,486.0,0.00025495,120]
[393543010,1762786246597,486.0,0.00026769,120]
[393543081,1762786247220,-740.4391996,0.000218,2]
[393543083,1762786247232,-1604.65322491,0.000218,2]